[Event "FIDE WSTC Open 65 2025"]
[Site "Prague"]
[Date "2025.02.21"]
[Round "5.23"]
[White "Vucenovic, Dragomir"]
[Black "Baarslag, Ed"]
[Result "0-1"]
[Annotator "ChessBase"]
[ECO "A46"]
[WhiteElo "2128"]
[BlackElo "2005"]
[PlyCount "90"]
[EventDate "2025.02.17"]
[EventType "team-tourn"]
[EventCountry "CZE"]
[SourceTitle "playchess.com"]
[Source "ChessBase"]
[SourceQuality "1"]
[TimeControl "40/5400+30:1800+30"]

1. d4 {[%emt 0:00:09]} Nf6 {[%emt 0:00:15]} 2. Bf4 {[%emt 0:00:13]} e6 {[%emt 0:01:05]} 3. e3 {[%emt 0:01:25]} c5 {[%emt 0:01:02]} 4. c3 {[%emt 0:01:00]} cxd4 {[%emt 0:01:38]} 5. exd4 {[%emt 0:00:27]} Be7 {[%emt 0:02:16]} 6. Nd2 {[%emt 0:00:44]} O-O {[%emt 0:02:32]} 7. Ngf3 {[%emt 0:00:37]} b6 {[%emt 0:00:44]} 8. Bd3 {[%emt 0:02:00]} Ba6 {[%emt 0:00:47]} 9. Bxa6 {[%emt 0:01:10]} Nxa6 {[%emt 0:00:07]} 10. Qe2 {[%emt 0:00:35]} Nc7 {[%emt 0:00:30]} 11. O-O {[%emt 0:01:12]} d6 {[%emt 0:01:00]} 12. Ne4 {[%emt 0:03:19]} Nxe4 {[%emt 0:06:57]} 13. Qxe4 {[%emt 0:00:53]} b5 {[%emt 0:01:17]} 14. a4 {[%emt 0:07:50]} a6 {[%emt 0:08:31]} 15. Ra2 {[%emt 0:12:42]} Qd7 {[%emt 0:12:47]} 16. Rfa1 {[%emt 0:12:29]} f5 {[%emt 0:03:46]} 17. Qe2 {[%emt 0:01:17]} Qc6 {[%emt 0:13:09]} 18. axb5 {[%emt 0:10:28]} axb5 {[%emt 0:00:29]} 19. Rxa8 {[%emt 0:02:58]} Rxa8 {[%emt 0:00:14]} 20. Rxa8+ {[%emt 0:01:59]} Qxa8 {[%emt 0:00:08]} 21. h4 {[%emt 0:00:53]} Qd5 {[%emt 0:05:48]} 22. Bg5 {[%emt 0:04:45]} Bxg5 {[%emt 0:07:21]} 23. Nxg5 {[%emt 0:01:41]} h6 {[%emt 0:00:57]} 24. Nf3 {[%emt 0:02:56]} Kf7 {[%emt 0:01:34]} 25. Ne1 {[%emt 0:04:15]} Ne8 {[%emt 0:16:34]} 26. Nd3 {[%emt 0:15:00]} Qe4 {[%emt 0:01:17]} 27. Qxe4 {[%emt 0:01:08]} fxe4 {[%emt 0:00:02]} 28. Ne1 {[%emt 0:01:36]} Kf6 {[%emt 0:01:07]} 29. Nc2 {[%emt 0:01:45]} d5 {[%emt 0:02:36]} 30. Ne3 {[%emt 0:01:21]} Nd6 {[%emt 0:00:08]} 31. g4 {[%emt 0:05:33]} Nc4 {[%emt 0:00:59]} 32. Nd1 {[%emt 0:00:38]} e5 {[%emt 0:00:52]} 33. Ne3 {[%emt 0:00:18]} Ke6 {[%emt 0:03:15]} 34. Nf5 {[%emt 0:00:41]} g6 {[%emt 0:00:21]} 35. Nxh6 {[%emt 0:00:05]} exd4 {[%emt 0:01:07]} 36. cxd4 {[%emt 0:00:04]} Nxb2 {[%emt 0:00:12]} 37. h5 {[%emt 0:00:24]} gxh5 {[%emt 0:00:17]} 38. gxh5 {[%emt 0:00:04]} b4 {[%emt 0:00:15]} 39. Ng4 {[%emt 0:00:07]} Nc4 {[%emt 0:00:20]} 40. h6 {[%emt 0:00:21]} Kf7 {[%emt 0:01:10]} 41. h7 {[%emt 0:30:08]} Kg7 {[%emt 0:28:37]} 42. Nf6 {[%emt 0:01:36]} Nb6 {[%emt 0:01:39]} 43. Nh5+ {[%emt 0:00:06]} Kxh7 {[%emt 0:00:34]} 44. Nf4 {[%emt 0:00:01]} b3 {[%emt 0:00:31]} 45. Ne2 {[%emt 0:00:01]} Na4 {[%emt 0:00:19]} 0-1

[Event "FIDE WSTC Open 65 2025"]
[Site "Prague"]
[Date "2025.02.21"]
[Round "5.24"]
[White "Ten Hacken, Jos"]
[Black "Hohler, Peter"]
[Result "1/2-1/2"]
[Annotator "NA"]
[ECO "E28"]
[WhiteElo "2020"]
[BlackElo "2045"]
[PlyCount "81"]
[EventDate "2025.02.17"]
[EventType "team-tourn"]
[EventCountry "CZE"]
[SourceTitle "playchess.com"]
[Source "ChessBase"]
[SourceQuality "1"]
[TimeControl "40/5400+30:1800+30"]

1. d4 {[%emt 0:00:05]} Nf6 {[%emt 0:00:12]} 2. c4 {[%emt 0:00:12]} e6 {[%emt 0:00:13]} 3. Nc3 {[%emt 0:00:17]} Bb4 {[%emt 0:00:36]} 4. e3 {[%emt 0:00:21]} O-O {[%emt 0:00:28]} 5. a3 {[%emt 0:00:30]} Bxc3+ {[%emt 0:01:43]} 6. bxc3 {[%emt 0:00:14]} c5 {[%emt 0:07:24]} 7. Bd3 {[%emt 0:00:54]} d6 {[%emt 0:01:57]} 8. Ne2 {[%emt 0:02:06]} e5 {[%emt 0:03:59]} 9. f3 {[%emt 0:03:38]} Re8 {[%emt 0:10:48]} 10. O-O {[%emt 0:06:45]} Nbd7 {[%emt 0:04:22]} 11. Ng3 {[%emt 0:03:14]} Nf8 {[%emt 0:06:19]} 12. Rb1 {[%emt 0:21:40]} Rb8 {[%emt 0:01:38]} 13. Qc2 {[%emt 0:07:12]} Ng6 {[%emt 0:18:23]} 14. dxc5 {[%emt 0:07:46]} dxc5 {[%emt 0:00:19]} 15. Ne4 {[%emt 0:00:36]} Nxe4 {[%emt 0:11:26]} 16. Bxe4 {[%emt 0:00:21]} Be6 {[%emt 0:02:13]} 17. Rd1 {[%emt 0:01:54]} Qc7 {[%emt 0:00:52]} 18. Bd5 {[%emt 0:01:59]} Nf8 {[%emt 0:03:06]} 19. e4 {[%emt 0:00:55]} Nd7 {[%emt 0:07:25]} 20. Be3 {[%emt 0:02:59]} Nb6 {[%emt 0:00:45]} 21. Rb5 {[%emt 0:18:02]} Bxd5 {[%emt 0:03:00]} 22. cxd5 {[%emt 0:02:08]} Nc4 {[%emt 0:07:22]} 23. Qe2 {[%emt 0:04:15]} Nxe3 {[%emt 0:00:44]} 24. Qxe3 {[%emt 0:00:03]} b6 {[%emt 0:00:28]} 25. c4 {[%emt 0:03:34]} Red8 {[%emt 0:02:51]} 26. Qc3 {[%emt 0:01:43]} f6 {[%emt 0:00:49]} 27. Rdb1 {[%emt 0:00:48]} Rd6 {[%emt 0:00:48]} 28. a4 {[%emt 0:01:15]} h6 {[%emt 0:00:49]} 29. a5 {[%emt 0:02:44]} Kh7 {[%emt 0:00:20]} 30. Qb2 {[%emt 0:01:08]} h5 {[%emt 0:01:03]} 31. g3 {[%emt 0:01:27]} g5 {[%emt 0:01:23]} 32. Kg2 {[%emt 0:00:42]} Kh6 {[%emt 0:00:10]} 33. Qd2 {[%emt 0:01:14]} Kh7 {[%emt 0:00:43]} 34. h3 {[%emt 0:00:19]} Qd7 {[%emt 0:01:29]} 35. Qb2 {[%emt 0:00:58]} Qc7 {[%emt 0:00:30]} 36. Qd2 {[%emt 0:00:24]} Rg8 {[%emt 0:00:45]} 37. Qb2 {[%emt 0:00:29]} Rb8 {[%emt 0:00:08]} 38. Qf2 {[%emt 0:00:22]} Rg8 {[%emt 0:00:12]} 39. Qe3 {[%emt 0:00:31]} Rc8 {[%emt 0:01:15]} 40. Qc3 {[%emt 0:00:24]} Rg8 {[%emt 0:00:17]} 41. Kh2 {[%emt 0:33:25]} 1/2-1/2

[Event "FIDE WSTC Open 65 2025"]
[Site "Prague"]
[Date "2025.02.21"]
[Round "5.25"]
[White "Jurek, Josef"]
[Black "Binham, Timothy F."]
[Result "1/2-1/2"]
[Annotator "RC"]
[ECO "D41"]
[WhiteElo "2160"]
[BlackElo "2250"]
[PlyCount "27"]
[EventDate "2025.02.17"]
[EventType "team-tourn"]
[EventCountry "CZE"]
[SourceTitle "playchess.com"]
[Source "ChessBase"]
[SourceQuality "1"]
[TimeControl "40/5400+30:1800+30"]

1. Nf3 {[%emt 0:00:12]} c5 {[%emt 0:00:59]} 2. c4 {[%emt 0:00:21]} Nf6 {[%emt 0:00:23]} 3. Nc3 {[%emt 0:00:39]} d5 {[%emt 0:03:51]} 4. cxd5 {[%emt 0:00:21]} Nxd5 {[%emt 0:00:02]} 5. e3 {[%emt 0:02:34]} e6 {[%emt 0:07:13]} 6. d4 {[%emt 0:03:44]} Nc6 {[%emt 0:02:17]} 7. Bc4 {[%emt 0:06:13]} cxd4 {[%emt 0:01:29]} 8. exd4 {[%emt 0:01:39]} Be7 {[%emt 0:01:24]} 9. O-O {[%emt 0:01:38]} O-O {[%emt 0:00:05]} 10. a3 {[%emt 0:07:40]} Nxc3 {[%emt 0:09:50]} 11. bxc3 {[%emt 0:00:21]} b6 {[%emt 0:00:23]} 12. Qd3 {[%emt 0:05:28]} Bb7 {[%emt 0:00:53]} 13. Bb3 {[%emt 0:04:18]} Bf6 {[%emt 0:03:21]} 14. Bc2 {[%emt 0:05:52]} 1/2-1/2

[Event "FIDE WSTC Open 65 2025"]
[Site "Prague"]
[Date "2025.02.21"]
[Round "5.26"]
[White "Henttinen, Markku I.O."]
[Black "Netusil, Miloslav"]
[Result "1/2-1/2"]
[Annotator "RC"]
[ECO "D06"]
[WhiteElo "2223"]
[BlackElo "2121"]
[PlyCount "119"]
[EventDate "2025.02.17"]
[EventType "team-tourn"]
[EventCountry "CZE"]
[SourceTitle "playchess.com"]
[Source "ChessBase"]
[SourceQuality "1"]
[TimeControl "40/5400+30:1800+30"]

1. d4 {[%emt 0:00:06]} d5 {[%emt 0:00:22]} 2. c4 {[%emt 0:00:17]} Bf5 {[%emt 0:01:06]} 3. cxd5 {[%emt 0:05:49]} Bxb1 {[%emt 0:00:26]} 4. Qa4+ {[%emt 0:00:56]} c6 {[%emt 0:00:06]} 5. dxc6 {[%emt 0:01:43]} Nxc6 {[%emt 0:00:09]} 6. Rxb1 {[%emt 0:00:12]} e5 {[%emt 0:00:15]} 7. Bd2 {[%emt 0:03:21]} exd4 {[%emt 0:02:16]} 8. g3 {[%emt 0:03:11]} Bc5 {[%emt 0:09:48]} 9. Bg2 {[%emt 0:13:43]} Nge7 {[%emt 0:00:10]} 10. Rc1 {[%emt 0:07:09]} Bb6 {[%emt 0:01:35]} 11. Rxc6 {[%emt 0:02:19]} Nxc6 {[%emt 0:04:03]} 12. Bxc6+ {[%emt 0:01:03]} bxc6 {[%emt 0:00:05]} 13. Qxc6+ {[%emt 0:00:12]} Kf8 {[%emt 0:00:07]} 14. Nf3 {[%emt 0:04:57]} Rc8 {[%emt 0:10:42]} 15. Qa4 {[%emt 0:01:00]} h5 {[%emt 0:01:46]} 16. h4 {[%emt 0:06:51]} Qd5 {[%emt 0:14:23]} 17. O-O {[%emt 0:02:52]} f6 {[%emt 0:03:49]} 18. Rd1 {[%emt 0:04:31]} Kf7 {[%emt 0:03:30]} 19. Be3 {[%emt 0:07:06]} Rhd8 {[%emt 0:05:47]} 20. Bf4 {[%emt 0:07:28]} Qc4 {[%emt 0:03:30]} 21. Qa3 {[%emt 0:05:30]} Bc5 {[%emt 0:08:06]} 22. Qd3 {[%emt 0:02:31]} Qxd3 {[%emt 0:00:07]} 23. Rxd3 {[%emt 0:00:49]} Bb6 {[%emt 0:00:09]} 24. Bd2 {[%emt 0:02:43]} Rc2 {[%emt 0:03:32]} 25. Rb3 {[%emt 0:00:17]} Rc4 {[%emt 0:01:41]} 26. Kf1 {[%emt 0:02:02]} Rd5 {[%emt 0:00:19]} 27. Ra3 {[%emt 0:02:59]} Ke6 {[%emt 0:00:27]} 28. Ne1 {[%emt 0:00:46]} g5 {[%emt 0:03:05]} 29. Nd3 {[%emt 0:03:31]} Kf5 {[%emt 0:00:36]} 30. b3 {[%emt 0:02:39]} Rc8 {[%emt 0:02:16]} 31. b4 {[%emt 0:00:14]} Rc2 {[%emt 0:01:12]} 32. Ke1 {[%emt 0:00:19]} Kg4 {[%emt 0:00:48]} 33. Kd1 {[%emt 0:00:36]} Rc8 {[%emt 0:00:33]} 34. Rb3 {[%emt 0:00:32]} gxh4 {[%emt 0:01:39]} 35. gxh4 {[%emt 0:00:02]} Bc7 {[%emt 0:00:18]} 36. f4 {[%emt 0:02:06]} Kf5 {[%emt 0:00:24]} 37. Nf2 {[%emt 0:00:47]} Rg8 {[%emt 0:03:18]} 38. Rd3 {[%emt 0:01:11]} Rdd8 {[%emt 0:01:16]} 39. Rf3 {[%emt 0:00:21]} Rg2 {[%emt 0:04:11]} 40. Be1 {[%emt 0:01:13]} Rh2 {[%emt 0:01:58]} 41. Ra3 {[%emt 0:19:30]} Bb6 {[%emt 0:01:36]} 42. Nd3 {[%emt 0:03:06]} Re8 {[%emt 0:13:56]} 43. Bf2 {[%emt 0:00:41]} Rh1+ {[%emt 0:02:22]} 44. Kd2 {[%emt 0:00:27]} Rb1 {[%emt 0:00:15]} 45. Kc2 {[%emt 0:00:42]} Rh1 {[%emt 0:00:48]} 46. Kd2 {[%emt 0:00:07]} Rc8 {[%emt 0:02:12]} 47. Be1 {[%emt 0:02:00]} Rc4 {[%emt 0:01:15]} 48. Ra6 {[%emt 0:01:03]} Rc7 {[%emt 0:03:20]} 49. a4 {[%emt 0:06:07]} Re7 {[%emt 0:00:07]} 50. Bf2 {[%emt 0:01:12]} Ra1 {[%emt 0:02:30]} 51. Nc1 {[%emt 0:01:30]} Bc7 {[%emt 0:03:29]} 52. Bxd4 {[%emt 0:00:58]} Rd7 {[%emt 0:04:40]} 53. Rxf6+ {[%emt 0:00:15]} Ke4 {[%emt 0:00:11]} 54. e3 {[%emt 0:00:53]} Rxd4+ {[%emt 0:01:09]} 55. exd4 {[%emt 0:00:10]} Bxf4+ {[%emt 0:00:06]} 56. Rxf4+ {[%emt 0:02:39]} Kxf4 {[%emt 0:00:45]} 57. a5 {[%emt 0:00:03]} Ke4 {[%emt 0:01:05]} 58. Kc2 {[%emt 0:00:25]} Kd5 {[%emt 0:00:37]} 59. Kb2 {[%emt 0:00:42]} Ra4 {[%emt 0:00:29]} 60. Kb3 {[%emt 0:00:00]} 1/2-1/2

[Event "FIDE WSTC Open 65 2025"]
[Site "Prague"]
[Date "2025.02.21"]
[Round "5.27"]
[White "Hosticka, Frantisek"]
[Black "Westerinen, Heikki M.J."]
[Result "1/2-1/2"]
[Annotator "ChessBase"]
[ECO "C20"]
[WhiteElo "2059"]
[BlackElo "2213"]
[PlyCount "93"]
[EventDate "2025.02.17"]
[EventType "team-tourn"]
[EventCountry "CZE"]
[SourceTitle "playchess.com"]
[Source "ChessBase"]
[SourceQuality "1"]
[TimeControl "40/5400+30:1800+30"]

1. e4 {[%emt 0:00:08]} e5 {[%emt 0:00:33]} 2. Bb5 {[%emt 0:00:08]} Nf6 {[%emt 0:02:00]} 3. d3 {[%emt 0:00:20]} c6 {[%emt 0:05:22]} 4. Ba4 {[%emt 0:00:39]} d5 {[%emt 0:00:30]} 5. Nd2 {[%emt 0:00:18]} dxe4 {[%emt 0:12:04]} 6. dxe4 {[%emt 0:01:05]} Na6 {[%emt 0:01:47]} 7. c3 {[%emt 0:03:56]} Nc5 {[%emt 0:00:43]} 8. Bc2 {[%emt 0:00:14]} Nd3+ {[%emt 0:04:28]} 9. Bxd3 {[%emt 0:03:53]} Qxd3 {[%emt 0:00:05]} 10. Qe2 {[%emt 0:00:45]} Qxe2+ {[%emt 0:01:16]} 11. Nxe2 {[%emt 0:00:11]} Bd6 {[%emt 0:07:04]} 12. Ng3 {[%emt 0:10:31]} Be6 {[%emt 0:02:04]} 13. Nf5 {[%emt 0:01:57]} Bf8 {[%emt 0:02:43]} 14. f3 {[%emt 0:05:45]} O-O-O {[%emt 0:01:42]} 15. Nb3 {[%emt 0:04:07]} Nd7 {[%emt 0:03:06]} 16. O-O {[%emt 0:06:34]} g6 {[%emt 0:05:16]} 17. Ng3 {[%emt 0:04:26]} Bc4 {[%emt 0:09:45]} 18. Rd1 {[%emt 0:03:27]} Be7 {[%emt 0:03:33]} 19. Be3 {[%emt 0:05:17]} Nb6 {[%emt 0:03:49]} 20. Nc5 {[%emt 0:07:38]} f6 {[%emt 0:13:51]} 21. b3 {[%emt 0:08:22]} Bf7 {[%emt 0:00:07]} 22. Kf1 {[%emt 0:04:08]} Na8 {[%emt 0:01:33]} 23. Ke1 {[%emt 0:05:05]} b6 {[%emt 0:00:57]} 24. Na4 {[%emt 0:01:06]} Nc7 {[%emt 0:01:24]} 25. Rxd8+ {[%emt 0:01:55]} Rxd8 {[%emt 0:00:13]} 26. Rd1 {[%emt 0:00:33]} Nb5 {[%emt 0:02:50]} 27. Rxd8+ {[%emt 0:02:38]} Kxd8 {[%emt 0:00:11]} 28. Ne2 {[%emt 0:01:21]} c5 {[%emt 0:00:53]} 29. c4 {[%emt 0:01:36]} Nd4 {[%emt 0:00:20]} 30. Nac3 {[%emt 0:00:28]} Kd7 {[%emt 0:04:40]} 31. Nd5 {[%emt 0:01:35]} Bd8 {[%emt 0:00:19]} 32. Kd2 {[%emt 0:04:02]} f5 {[%emt 0:02:43]} 33. Nec3 {[%emt 0:01:47]} f4 {[%emt 0:00:56]} 34. Bf2 {[%emt 0:01:19]} g5 {[%emt 0:00:18]} 35. Kd3 {[%emt 0:08:20]} h5 {[%emt 0:00:47]} 36. h3 {[%emt 0:01:00]} Be6 {[%emt 0:00:29]} 37. b4 {[%emt 0:01:07]} g4 {[%emt 0:02:14]} 38. hxg4 {[%emt 0:00:19]} hxg4 {[%emt 0:00:09]} 39. fxg4 {[%emt 0:01:16]} Bxg4 {[%emt 0:00:12]} 40. bxc5 {[%emt 0:00:18]} bxc5 {[%emt 0:00:11]} 41. g3 {[%emt 0:04:51]} Bh3 {[%emt 0:11:55]} 42. gxf4 {[%emt 0:08:49]} Bf1+ {[%emt 0:00:25]} 43. Ke3 {[%emt 0:00:52]} exf4+ {[%emt 0:03:01]} 44. Kxf4 {[%emt 0:00:57]} Bxc4 {[%emt 0:00:31]} 45. Ke5 {[%emt 0:02:10]} Nc6+ {[%emt 0:05:45]} 46. Kf5 {[%emt 0:08:18]} Nd4+ {[%emt 0:00:37]} 47. Ke5 {[%emt 0:00:18]} 1/2-1/2

[Event "FIDE WSTC Open 65 2025"]
[Site "Prague"]
[Date "2025.02.21"]
[Round "5.28"]
[White "Joentausta, Hannu"]
[Black "Groh, Jiri"]
[Result "1/2-1/2"]
[Annotator "ChessBase"]
[ECO "D58"]
[WhiteElo "2097"]
[BlackElo "1989"]
[PlyCount "99"]
[EventDate "2025.02.17"]
[EventType "team-tourn"]
[EventCountry "CZE"]
[SourceTitle "playchess.com"]
[Source "ChessBase"]
[SourceQuality "1"]
[TimeControl "40/5400+30:1800+30"]

1. d4 {[%emt 0:00:03]} d5 {[%emt 0:02:16]} 2. c4 {[%emt 0:00:31]} e6 {[%emt 0:00:29]} 3. Nc3 {[%emt 0:00:16]} Nf6 {[%emt 0:00:35]} 4. Bg5 {[%emt 0:00:36]} Be7 {[%emt 0:00:06]} 5. e3 {[%emt 0:00:15]} h6 {[%emt 0:00:10]} 6. Bh4 {[%emt 0:01:46]} O-O {[%emt 0:00:14]} 7. Nf3 {[%emt 0:00:30]} b6 {[%emt 0:00:16]} 8. Rc1 {[%emt 0:02:32]} Bb7 {[%emt 0:00:47]} 9. Bxf6 {[%emt 0:00:32]} Bxf6 {[%emt 0:00:15]} 10. cxd5 {[%emt 0:00:04]} exd5 {[%emt 0:00:20]} 11. Bd3 {[%emt 0:00:21]} a6 {[%emt 0:08:53]} 12. O-O {[%emt 0:00:27]} Nd7 {[%emt 0:00:35]} 13. e4 {[%emt 0:10:59]} dxe4 {[%emt 0:03:16]} 14. Bxe4 {[%emt 0:05:50]} Bxe4 {[%emt 0:00:47]} 15. Nxe4 {[%emt 0:00:03]} c5 {[%emt 0:03:55]} 16. dxc5 {[%emt 0:05:20]} Nxc5 {[%emt 0:02:45]} 17. Qxd8 {[%emt 0:03:38]} Raxd8 {[%emt 0:01:44]} 18. Nxf6+ {[%emt 0:01:25]} gxf6 {[%emt 0:00:02]} 19. g3 {[%emt 0:02:57]} Rfe8 {[%emt 0:01:48]} 20. Rfe1 {[%emt 0:03:48]} a5 {[%emt 0:06:22]} 21. Rxe8+ {[%emt 0:05:18]} Rxe8 {[%emt 0:00:05]} 22. Kf1 {[%emt 0:00:10]} Nd3 {[%emt 0:05:40]} 23. Rc6 {[%emt 0:04:02]} Re6 {[%emt 0:01:31]} 24. Rc8+ {[%emt 0:01:29]} Kg7 {[%emt 0:00:35]} 25. b3 {[%emt 0:01:36]} Re4 {[%emt 0:09:15]} 26. Rc3 {[%emt 0:02:20]} Nc5 {[%emt 0:02:34]} 27. Nd2 {[%emt 0:02:57]} Re6 {[%emt 0:10:06]} 28. Nc4 {[%emt 0:05:45]} a4 {[%emt 0:05:41]} 29. Ne3 {[%emt 0:18:47]} Ne4 {[%emt 0:05:28]} 30. Rc2 {[%emt 0:01:36]} axb3 {[%emt 0:04:56]} 31. axb3 {[%emt 0:00:02]} Nc5 {[%emt 0:02:41]} 32. b4 {[%emt 0:05:02]} Nd3 {[%emt 0:01:16]} 33. Rc4 {[%emt 0:00:16]} Ne5 {[%emt 0:13:23]} 34. Rc7 {[%emt 0:09:02]} Kg6 {[%emt 0:04:35]} 35. f4 {[%emt 0:04:30]} Rc6 {[%emt 0:00:14]} 36. Rxc6 {[%emt 0:00:26]} Nxc6 {[%emt 0:00:05]} 37. Nd5 {[%emt 0:00:48]} Kf5 {[%emt 0:00:54]} 38. b5 {[%emt 0:00:10]} Nd4 {[%emt 0:00:19]} 39. Nxb6 {[%emt 0:01:17]} Nxb5 {[%emt 0:00:09]} 40. Nd5 {[%emt 0:00:26]} Nd6 {[%emt 0:00:46]} 41. Kg2 {[%emt 0:31:23]} Ke6 {[%emt 0:32:57]} 42. Nc3 {[%emt 0:00:50]} f5 {[%emt 0:00:25]} 43. Kf3 {[%emt 0:00:12]} Nc4 {[%emt 0:00:37]} 44. Ke2 {[%emt 0:00:00]} Nb6 {[%emt 0:00:00]} 45. Kd3 {[%emt 0:00:00]} Nd7 {[%emt 0:00:00]} 46. Ne2 {[%emt 0:00:00]} Nc5+ {[%emt 0:00:00]} 47. Ke3 {[%emt 0:00:00]} Kf6 {[%emt 0:00:00]} 48. Nd4 {[%emt 0:00:00]} Kg6 {[%emt 0:00:00]} 49. Kf3 {[%emt 0:00:00]} Nd3 {[%emt 0:00:00]} 50. Ke2 {[%emt 0:00:00]} 1/2-1/2

[Event "FIDE WSTC Open 65 2025"]
[Site "Prague"]
[Date "2025.02.21"]
[Round "5.29"]
[White "Primbetov, Marat"]
[Black "Ogaard, Leif"]
[Result "1/2-1/2"]
[Annotator "RC"]
[ECO "B02"]
[WhiteElo "2103"]
[BlackElo "2358"]
[PlyCount "30"]
[EventDate "2025.02.17"]
[EventType "team-tourn"]
[EventCountry "CZE"]
[SourceTitle "playchess.com"]
[Source "ChessBase"]
[SourceQuality "1"]
[TimeControl "40/5400+30:1800+30"]

1. e4 {[%emt 0:00:27]} Nf6 {[%emt 0:00:12]} 2. Nc3 {[%emt 0:05:22]} d5 {[%emt 0:00:46]} 3. exd5 {[%emt 0:00:17]} Nxd5 {[%emt 0:00:09]} 4. Bc4 {[%emt 0:00:08]} e6 {[%emt 0:01:20]} 5. Nf3 {[%emt 0:04:35]} Be7 {[%emt 0:01:03]} 6. O-O {[%emt 0:01:06]} Nb6 {[%emt 0:02:16]} 7. Be2 {[%emt 0:02:13]} O-O {[%emt 0:02:02]} 8. d4 {[%emt 0:00:29]} c5 {[%emt 0:00:37]} 9. Be3 {[%emt 0:16:41]} cxd4 {[%emt 0:00:53]} 10. Qxd4 {[%emt 0:01:17]} Nc6 {[%emt 0:01:38]} 11. Qxd8 {[%emt 0:03:21]} Rxd8 {[%emt 0:00:13]} 12. Rad1 {[%emt 0:00:24]} Bd7 {[%emt 0:01:33]} 13. a3 {[%emt 0:04:21]} Be8 {[%emt 0:00:45]} 14. Rxd8 {[%emt 0:01:33]} Rxd8 {[%emt 0:00:10]} 15. Rd1 {[%emt 0:00:03]} Rxd1+ {[%emt 0:00:24]} 1/2-1/2

[Event "FIDE WSTC Open 65 2025"]
[Site "Prague"]
[Date "2025.02.21"]
[Round "5.30"]
[White "Heim, Sverre"]
[Black "Nasybullin, Vladislav"]
[Result "1/2-1/2"]
[Annotator "RC"]
[ECO "E04"]
[WhiteElo "2312"]
[BlackElo "2339"]
[PlyCount "61"]
[EventDate "2025.02.17"]
[EventType "team-tourn"]
[EventCountry "CZE"]
[SourceTitle "playchess.com"]
[Source "ChessBase"]
[SourceQuality "1"]
[TimeControl "40/5400+30:1800+30"]

1. d4 {[%emt 0:00:18]} Nf6 {[%emt 0:00:41]} 2. c4 {[%emt 0:00:23]} e6 {[%emt 0:00:24]} 3. g3 {[%emt 0:00:24]} d5 {[%emt 0:00:18]} 4. Nf3 {[%emt 0:00:17]} dxc4 {[%emt 0:00:19]} 5. Bg2 {[%emt 0:00:23]} c5 {[%emt 0:03:08]} 6. O-O {[%emt 0:02:00]} Nc6 {[%emt 0:00:37]} 7. Na3 {[%emt 0:01:16]} cxd4 {[%emt 0:01:03]} 8. Nxc4 {[%emt 0:00:10]} Be7 {[%emt 0:00:38]} 9. a3 {[%emt 0:01:04]} O-O {[%emt 0:01:01]} 10. b4 {[%emt 0:00:08]} Bd7 {[%emt 0:01:30]} 11. Bb2 {[%emt 0:01:42]} Rc8 {[%emt 0:00:32]} 12. Rc1 {[%emt 0:00:51]} Nd5 {[%emt 0:01:52]} 13. Nxd4 {[%emt 0:01:51]} Nxd4 {[%emt 0:01:39]} 14. Qxd4 {[%emt 0:04:05]} Bf6 {[%emt 0:02:16]} 15. Ne5 {[%emt 0:15:17]} Bb5 {[%emt 0:04:29]} 16. Rxc8 {[%emt 0:01:08]} Qxc8 {[%emt 0:00:15]} 17. Rc1 {[%emt 0:00:08]} Qb8 {[%emt 0:01:39]} 18. Qc5 {[%emt 0:03:21]} Bxe5 {[%emt 0:09:27]} 19. Bxe5 {[%emt 0:00:08]} Qxe5 {[%emt 0:00:17]} 20. Qxb5 {[%emt 0:01:25]} Qb2 {[%emt 0:00:13]} 21. Qc4 {[%emt 0:04:57]} Qxa3 {[%emt 0:00:47]} 22. Bxd5 {[%emt 0:01:06]} exd5 {[%emt 0:00:14]} 23. Qc3 {[%emt 0:00:23]} Qa6 {[%emt 0:03:13]} 24. Qc5 {[%emt 0:03:17]} Qxe2 {[%emt 0:01:12]} 25. Qxd5 {[%emt 0:00:27]} Qb2 {[%emt 0:00:35]} 26. Rc7 {[%emt 0:00:53]} Qxb4 {[%emt 0:09:00]} 27. Rxb7 {[%emt 0:00:08]} Qa3 {[%emt 0:00:33]} 28. Qd7 {[%emt 0:02:07]} a5 {[%emt 0:00:30]} 29. Ra7 {[%emt 0:00:22]} Qc5 {[%emt 0:01:14]} 30. Ra6 {[%emt 0:02:23]} g6 {[%emt 0:04:42]} 31. Qa4 {[%emt 0:01:07]} 1/2-1/2